Cogmind - Beta 14 @@@ ROGUE MODE // 2024.10.22 @ 16:06:28 Player: Lintence Result: Destroyed by Y-45 Defender with Beam Rifle Performance ------------- Evolutions (2) 1000 Regions Visited (3) 600 Robots Destroyed (54) 270 Value Destroyed (1455) 1455 Prototype IDs (2) 40 Alien Tech Used (0) 0 Bonus (0) 0 TOTAL SCORE: 3365 Bonus ------- None Cogmind --------- Core Integrity 0/550 Matter 276/300 Energy 100/100 System Corruption 4% Temperature Warm (141) Movement Treading (240) Ox1 Location -8/Materials Parts ------- > --- POWER (1) -------- (None) > --- PROPULSION (6) --- Light Treads > --- UTILITY (2) ------ Large Storage Unit > --- WEAPON (2) ------- Improved Assault Rifle > --- INVENTORY (15) --- Nuclear Core Flight Unit VTOL Module VTOL Module Improved Flight Unit Improved Flight Unit Improved Flight Unit Improved Flight Unit Light Armor Plating Hacking Suite System Shield Authchip [R/Combat] Authchip [R/Combat] Heavy Assault Rifle Heavy Assault Rifle Peak State ------------ > --- POWER ------------ Light Nuclear Core > --- PROPULSION ------- Light Treads Light Treads Advanced Treads Aluminum Leg Flight Unit Flight Unit > --- UTILITY ---------- Large Storage Unit Hacking Suite > --- WEAPON ----------- Shock Rifle Shotgun > --- INVENTORY -------- Carbon-fiber Leg Flight Unit Flight Unit Flight Unit Flight Unit Flight Unit VTOL Module VTOL Module Improved Flight Unit Improved Flight Unit Improved Flight Unit Improved Flight Unit Authchip [R/Combat] Authchip [R/Combat] Particle Gun [Rating: 23] Favorites ----------- Power Light Nuclear Core Engine Ion Engine Power Core Light Nuclear Core Propulsion Light Treads Treads Light Treads Leg Aluminum Leg Flight Unit Flight Unit Utility Large Storage Unit Storage Large Storage Unit Processor Signal Interpreter Hackware Hacking Suite Weapon Light Assault Rifle Energy Gun Beam Rifle Ballistic Gun Light Assault Rifle Build | -11 -10 -9 -8 ------- Run | Yrd Mat Mat Mat Slots Evolved 4 | . . 2 2 Power . | . . . . Propulsion 4 | . . 2 2 Utility . | . . . . Weapon . | . . . . Parts Attached 53 | 6 8 11 28 Power 9 | 1 2 1 5 Engine 3 | 1 1 . 1 Core 6 | . 1 1 4 Reactor . | . . . . Propulsion 26 | 2 1 7 16 Treads 14 | 2 1 3 8 Leg 4 | . . 2 2 Wheel . | . . . . Hover . | . . . . Flight 8 | . . 2 6 Utility 5 | 1 2 2 . Device . | . . . . Storage 3 | 1 2 . . Processor 1 | . . 1 . Hackware 1 | . . 1 . Protection . | . . . . Artifact . | . . . . Weapon 13 | 2 3 1 7 Energy Gun 7 | . 2 . 5 Energy Cannon . | . . . . Ballistic Gun 6 | 2 1 1 2 Ballistic Cannon . | . . . . Launcher . | . . . . Special Weapon . | . . . . Impact Weapon . | . . . . Slashing Weapon . | . . . . Piercing Weapon . | . . . . Special Melee Weapon . | . . . . Unidentified Prototypes 2 | . . 1 1 Corrupted Parts 1 | . . 1 . System Corruption 4 | . . 4 . Parts Lost 31 | . . 6 25 Power 4 | . . 1 3 Propulsion 20 | . . 4 16 Utility 1 | . . . 1 Weapon 6 | . . 1 5 Highest Loss Streak 15 | . . 4 15 To Critical Strikes 2 | . . 1 1 Average Slot Usage (%) 89 | . 92 89 87 Engine 4 | . 11 . . Core 6 | . 2 10 6 Treads 28 | . 28 26 29 Leg 3 | . . 6 4 Flight 4 | . . . 11 Storage 15 | . 21 14 9 Processor 1 | . . 6 . Hackware 3 | . . 1 8 Energy Gun 10 | . 8 11 12 Ballistic Gun 12 | . 19 10 4 Peak Build Rating 23 | 6 12 18 23 Average Rating 13 | 4 8 13 19 On Entrance 9 | . 6 12 18 Naked Turns . | . . . . Heaviest Build 40 | 12 40 40 35 Greatest Support 100 | 40 40 80 100 Greatest Overweight (x) 2 | . . 2 2 Average Overweight (x) . | . . . . Largest Inventory Capacity 15 | 8 15 15 15 Average Capacity 14 | 6 14 15 15 Most Carried 15 | 2 15 15 15 Average Carried 12 | 1 10 14 14 Final Capacity 15 | 8 15 15 15 Final Carried 15 | 2 15 14 15 Class Distribution -------------------- 55% | Scavenger-Mutant 44% | Mutant Dominant Class ---------------- Mutant | -10/Materials Scavenger-Mutant | -9/Materials Scavenger-Mutant | -8/Materials Resources | -11 -10 -9 -8 ----------- Run | Yrd Mat Mat Mat Matter Collected 1004 | 144 316 146 398 Remotely . | . . . . Salvage Created 1997 | . 443 412 1142 Parts 126 | . 27 30 69 Haulers Intercepted 5 | . 2 2 1 Recyclers Shooed 3 | 1 1 . 1 Parts Field Recycled . | . . . . Retrieved Matter . | . . . . Parts Self-Destructed . | . . . . Prevented . | . . . . Kills | -11 -10 -9 -8 ------- Run | Yrd Mat Mat Mat Combat Hostiles Destroyed 41 | . 11 10 20 Guns 40 | . 11 10 19 AOE 1 | . . . 1 Classes Destroyed 11 | . 4 3 4 Worker 1 | . . 1 . Builder 1 | . . . 1 Hauler 5 | . 2 2 1 Recycler 2 | . . 1 1 Operator 3 | . 1 . 2 Watcher 1 | . . . 1 Swarmer 14 | . 6 6 2 Grunt 19 | . 5 3 11 Brawler 1 | . . . 1 Sentry 6 | . . 1 5 Hunter 1 | . . . 1 Best Kill Streak 7 | . 3 3 7 Combat Bots Only 7 | . 3 3 7 Max Kills in Single Turn 2 | . 2 2 2 Gunslinging 1 | . 1 . . Exploded 1 | . . . 1 Melee . | . . . . Uniques/NPCs Destroyed . | . . . . Combat | -11 -10 -9 -8 -------- Run | Yrd Mat Mat Mat Hostile Shots Fired 419 | . 83 78 258 Missed 114 | . 28 17 69 Damage Taken 4011 | . 544 726 2741 Core 748 | . 119 75 554 Absorbed by Shields . | . . . . Core Remaining (%) 77 | 100 52 81 . Volleys Fired 178 | 2 42 43 91 Largest 2 | 2 2 2 2 Hottest 112 | 40 85 88 112 Shots Fired 331 | 4 83 80 164 Gun 331 | 4 83 80 164 Cannon . | . . . . Launcher . | . . . . Special . | . . . . Kinetic 154 | 4 58 41 51 Thermal 139 | . 2 39 98 Explosive . | . . . . Electromagnetic 38 | . 23 . 15 Robot Hit Streak 12 | 2 11 10 12 Robot Miss Streak 5 | 1 4 5 3 Penetration Max . | . . . . Secondary Targets 7 | . 3 2 2 Max Gunslinging Chain 1 | . 1 1 1 Shots Hit Robots 233 | 3 57 48 125 Core Hits 103 | 1 26 20 56 Critical Kills . | . . . . Critical Parts Destroyed 1 | . 1 . . Critical Strikes 10 | . 1 1 8 Burn 9 | . . 1 8 Destroy 1 | . 1 . . Melee Attacks . | . . . . Impact . | . . . . Slashing . | . . . . Piercing . | . . . . Sneak Attacks . | . . . . Combat Hostiles . | . . . . Follow-up Attacks . | . . . . Damage Inflicted 3366 | 20 647 661 2038 Guns 3236 | 20 619 661 1936 Cannons . | . . . . Explosions 125 | . 28 . 97 Melee . | . . . . Ramming 5 | . . . 5 Kinetic 1381 | 20 420 309 632 Thermal 1598 | . 43 352 1203 Explosive . | . . . . Electromagnetic 382 | . 184 . 198 Impact . | . . . . Slashing . | . . . . Piercing . | . . . . Highest Corruption 4 | . 3 4 4 Average Corruption 2 | . 2 4 2 Corruption Purged . | . . . . Corruption Blocked . | . . . . Effects 20 | . 15 3 2 Message Errors 1 | . 1 . . Matter Fused 7 | . 5 2 . Heat Flow Errors 3 | . 2 . 1 Energy Discharges 4 | . 4 . . Data Loss (minor) 3 | . 1 1 1 Data Loss (major) 1 | . 1 . . Weapon Failures 1 | . 1 . . Overload Shots . | . . . . Overflow Damage . | . . . . Projectiles . | . . . . Explosions . | . . . . Melee . | . . . . Knockbacks 1 | . . . 1 Impact 1 | . . . 1 Kinetic . | . . . . Secondary . | . . . . Self-Inflicted Damage 43 | . . . 43 Shots 1 | . . . 1 Rammed 1 | . . . 1 Targets Rammed 1 | . . . 1 Kicked . | . . . . Crushed . | . . . . Highest Temperature 392 | . 261 252 392 Average Temperature 91 | . 37 77 114 Received Heat Transfer 1593 | . 171 135 1287 Effects 1 | . . . 1 Energy Bleed 1 | . . . 1 Siege Activations . | . . . . Robots Corrupted . | . . . . Combat Hostiles . | . . . . Parts Fried 1 | . 1 . . Impact Corruptions . | . . . . Robots Melted . | . . . . Combat Hostiles . | . . . . Parts Melted 5 | . . . 5 Heat Transferred 4479 | . 87 925 3467 Parts Sabotaged . | . . . . Parts Stolen . | . . . . Parts Stripped . | . . . . Power Chain Reactions 2 | . 1 . 1 Alert | -11 -10 -9 -8 ------- Run | Yrd Mat Mat Mat Peak Influence 351 | . 237 343 351 Initial 74 | . . 63 74 Average 147 | . 85 203 191 Maximum Alert Level 1 | . 1 1 1 Low Security (%) 73 | 100 90 57 64 Level 1 26 | . 9 42 35 Level 2 . | . . . . Level 3 . | . . . . Level 4 . | . . . . Level 5 . | . . . . High Security . | . . . . Max Security . | . . . . Squads Dispatched 7 | . 1 1 5 Investigation . | . . . . Extermination . | . . . . Reinforcement 4 | . 1 1 2 Assault . | . . . . Garrison 3 | . . . 3 Intercept . | . . . . Searches Triggered . | . . . . Construction Impeded . | . . . . Haulers Reinforced . | . . . . Active Scanning Responses . | . . . . Cargo Convoy Interrupts . | . . . . Stealth | -11 -10 -9 -8 --------- Run | Yrd Mat Mat Mat Distress Signals 6 | . . 2 4 Communications Jammed . | . . . . Distress Signals . | . . . . Times Spotted 77 | . 25 18 34 Peak Tracking Total 8 | . 5 5 8 Tactical Retreats 7 | . 4 2 1 Traps | -11 -10 -9 -8 ------- Run | Yrd Mat Mat Mat Traps Triggered 2 | . 2 . . Indirectly . | . . . . Trap Hack Attempts . | . . . . Triggered . | . . . . Disarmed . | . . . . Reprogrammed . | . . . . Reused . | . . . . Traps Extracted . | . . . . Installed . | . . . . Triggered . | . . . . Machines | -11 -10 -9 -8 ---------- Run | Yrd Mat Mat Mat Machines Disabled 3 | . 1 . 2 Max in Single Turn 1 | . 1 . 1 Machines Repaired . | . . . . Machines Dismantled . | . . . . Machines Sabotaged . | . . . . Overloaded Fab Kills . | . . . . Hacking | -11 -10 -9 -8 --------- Run | Yrd Mat Mat Mat Machines Accessed . | . . . . Terminals . | . . . . Fabricators . | . . . . Repair Stations . | . . . . Recycling Units . | . . . . Scanalyzers . | . . . . Garrison Access . | . . . . Total Hacks . | . . . . Successful . | . . . . Failed . | . . . . Catastrophic . | . . . . Database Lockouts . | . . . . Manual . | . . . . Terminals . | . . . . Fabricators . | . . . . Repair Stations . | . . . . Recycling Units . | . . . . Scanalyzers . | . . . . Garrison Access . | . . . . Terminal Hacks . | . . . . Fabricator Hacks . | . . . . Repair Station Hacks . | . . . . Recycling Unit Hacks . | . . . . Scanalyzer . | . . . . Garrison Access Hacks . | . . . . Unauthorized Hacks . | . . . . Terminals . | . . . . Fabricators . | . . . . Repair Stations . | . . . . Recycling Units . | . . . . Scanalyzers . | . . . . Garrison Access . | . . . . Data Cores Recovered . | . . . . Used . | . . . . Hacking Detections . | . . . . Full Trace Events . | . . . . Feedback Events . | . . . . Feedback Blocked . | . . . . Robot Schematics Acquired . | . . . . Robots Built . | . . . . Authchips . | . . . . Time . | . . . . Total Robot Build Rating . | . . . . Part Schematics Acquired . | . . . . Parts Built . | . . . . Authchips . | . . . . Time . | . . . . Total Part Build Rating . | . . . . Parts Repaired . | . . . . Time . | . . . . Parts Recycled . | . . . . Recycled Matter . | . . . . Retrieved Matter . | . . . . Retrieved Components . | . . . . Parts Scanalyzed . | . . . . Part Schematics Acquired . | . . . . Parts Damaged . | . . . . Bothacking | -11 -10 -9 -8 ------------ Run | Yrd Mat Mat Mat Used RIF Installer . | . . . . Robots Hacked . | . . . . Non-combat . | . . . . Combat . | . . . . Robot Hacks Applied . | . . . . Relay Couplers Released . | . . . . Fabnet Peak Effective % . | . . . . Robots Rewired . | . . . . Allies Hacked . | . . . . Hacks Repelled . | . . . . Allies | -11 -10 -9 -8 -------- Run | Yrd Mat Mat Mat Total Allies . | . . . . Largest Group . | . . . . Highest-Rated Group . | . . . . Highest-Rated Ally . | . . . . Total Orders . | . . . . Ally Attacks . | . . . . Total Damage . | . . . . Kills . | . . . . Allies Corrupted . | . . . . Allies Melted . | . . . . Intel | -11 -10 -9 -8 ------- Run | Yrd Mat Mat Mat Robot Analysis Total . | . . . . Derelict Logs Recovered . | . . . . Drone Launches . | . . . . Drone Recoveries . | . . . . Exploration | -11 -10 -9 -8 ------------- Run | Yrd Mat Mat Mat Turns Passed 2294 | 64 906 582 742 Spaces Moved 959 | 32 420 247 260 Core 2 | 2 . . . Treads 920 | 30 420 222 248 Legs 30 | . . 25 5 Wheels . | . . . . Hover . | . . . . Flight 7 | . . . 7 Fastest Speed 50 | 50 160 160 111 Average Speed 162 | 153 160 168 159 Slowest Speed 260 | 160 160 260 260 Overloaded Moves . | . . . . Propulsion Burnouts . | . . . . Robots Hopped . | . . . . Cave-ins Triggered . | . . . . Exploration Rate (%) 29 | 4 62 21 31 Regions Visited 3 Branch Regions . Pre-discovered Areas . | . . . . Known Exits Taken 1 | . . 1 . Unknown Exits Taken 2 | 1 1 . . Scrap Searched . | . . . . Spaces Dug . | . . . . Terrain Destroyed 7 | . 4 . 3 Melee . | . . . . Projectile . | . . . . AOE 7 | . 4 . 3 Terrain Rammed . | . . . . Walls Destroyed . | . . . . Machines Disabled . | . . . . Actions | -11 -10 -9 -8 --------- Run | Yrd Mat Mat Mat Total 1382 | 41 586 337 418 Wait 109 | . 75 19 15 Move 956 | 31 419 246 260 Hop . | . . . . Pick Up 48 | 2 25 10 11 Fast Attach 33 | 6 4 5 18 Attach 11 | . . 4 7 Detach 3 | . 1 1 1 Swap 9 | . 4 2 3 Drop 34 | . 16 7 11 Fire 178 | 2 42 43 91 Melee . | . . . . Ram . | . . . . Kick . | . . . . Crush 1 | . . . 1 Escape Stasis . | . . . . Rewire . | . . . . Trap . | . . . . Miscellaneous . | . . . . Route ------- -11/Scrapyard -10/Materials (discovered 2 exits: [*Mat] / [*Min]) -9/Materials -8/Materials History --------- Turn | Location | Event 10 | -11/Scrapyard | Discovered new exit (range 15) 65 | -11/Scrapyard | Entered Materials 226 | -10/Materials | Discovered new exit (range 11) 305 | -10/Materials | Build established: Mutant 964 | -10/Materials | Discovered new exit (range 5) 971 | -10/Materials | Entered another Materials area 971 | -9/Materials | Evolved 2 slots: Propulsion x2 1069 | -9/Materials | Build established: Scavenger-Mutant 1362 | -9/Materials | Lost 4 parts (1p2n1w) 1466 | -9/Materials | Discovered new exit (range 5) 1474 | -9/Materials | Identified exit to Materials 1553 | -9/Materials | Entered another Materials area 1553 | -8/Materials | Evolved 2 slots: Propulsion x2 1684 | -8/Materials | Garrison activated, responded to threat 1717 | -8/Materials | Core integrity fell below 50% 1762 | -8/Materials | Lost 15 parts (2p9n4w) 1765 | -8/Materials | Destroyed 7 combat bots 2258 | -8/Materials | Core integrity fell below 20% 2295 | -8/Materials | Destroyed by Y-45 Defender with Beam Rifle Last Messages --------------- 02278_ U-05 Engineer completes Hadron Collector. 02279_ R-06 Scavenger collects Lgt. Treads. 02280_ K-01 Serf collects debris. 02281_ Lgt. Treads destroyed. 02282_ G-47 Trooper heat short circuits Imp. Heat Sink. 02283_ K-01 Serf collects debris. 02283_ Lgt. Treads destroyed. 02284_ R-06 Scavenger collects Aluminum Leg. 02286_ Flight Unit destroyed. 02286_ K-01 Serf collects debris. 02287_ Critical hit (Burn: +37). 02288_ Hadron Collector comes online. 02289_ G-47 Trooper heat spikes uncontrollably. 02289_ G-47 Trooper overheating. 02290_ K-01 Serf collects debris. 02291_ G-47 Trooper overheating. 02293_ K-01 Serf collects debris. 02293_ R-06 Scavenger collects Hover Unit. 02294_ G-47 Trooper heat damages Aluminum Leg. Map ----- +----------------------------------------------------+ | ?????????????????????????????????????????????????? | | ?????????????????????????????????????????????????? | | ?????????????????????????????????????????????????? | | ?????????????????????????????????????????????????? | | ?????????????????????????????????????????????????? | | ?????????????????????????????????????????????????? | | ?????????????????????????????????????????????????? | | ?????????????????????????????????????????????????? | | ?????????????????????????????????????????????????? | | ?????????????????????????????????????????????????? | | ?????????????????????????????????????????????????? | | ?????????????????????????????????????????????????? | | ?????????????????????????????????????????????????? | | ?????????????????????????????????????????????????? | | ?????????????????????????????????????????????????? | | ?????????????????????????????????????????????????? | | ?????????????????????????????????????????????????? | | ????????????????##############???????????????????? | | ????????????????# """"" #???????????????????? | | ????????????????# """"" #???????????????????? | | ????????????????# """"" #????#??????????????? | | ????????????????# #?? #??????????????? | | ????????????????# ! #? ########???????? | | ????????##################a### #??????? | | ????????# #??????? | | ######### % @% #??????? | | % % % % k %kg #??????? | | ############+###"" Y #??????? | | ??????????# % =#"" """" """" """" ???????? | | ??????????#% !=#"T """" """ """" ???????? | | ??????????#=% #"" """" """" """??????????? | | ??????????# #"" r ??????????? | | ? ??????#*** # % a ??????????? | | ??????#** /# ??????????? | | ??????#*** #######+###############???????????? | | # #?????# #????? ??????????????????????????? | | # #????# [ #???? ??????????????????????????? | | # #????#######??? ??????????????????????????? | | # #??????????????""""??????????????????????????? | | # #????????????? """"??????????????????????????? | | # #????????????# """???????????????????????????? | | # #????????????#??""???????????????????????????? | | # #????????????????????????????????????????????? | | # #????????????????????????????????????????????? | | # #????????????????????????????????????????????? | | # +????????????????????????????????????????????? | | #????????????????????????????????????????????? | | # % #????????????????????????????????????????????? | | # #????????????????????????????????????????????? | | # ##???????????????????????????????????????????? | +----------------------------------------------------+ Best States ------------- Heat Dissipation 31 Energy Generation 14 Energy Capacity 275 Matter Stores 300 Matter Capacity 300 Sight Range 16 Terrain Scan Density 10 Evasion (%) 40 Recoil Reduction 5 Offensive Hacking 10 Authchip Count 4 Item Schematics ----------------- None Robot Schematics ------------------ None Fabricated ------------ Nothing Alien Tech Used ----------------- None Achievements -------------- None Challenges ------------ None Game ------ Seed ScanStealthActivator Manual? 0 Play Time 00:23:49 Cumulative 43.0 hours Start 2024.10.22 @ 15:44:21 End 2024.10.22 @ 16:06:28 Sessions 1 Manual Loads 0 Difficulty Rogue Special Mode None Game No. 82 Rogue 82 Adventurer 0 Explorer 0 Win Type - Total 1 Types 1/0/0/0/0/0/0/0/0 Lore% 15 Gallery% 33 Achievement% 26 Wizard Run 0 Options --------- Layout 1 ASCII 0 Keyboard 0 Movement Mouse Keybinds 0 Fullscreen 1 Font 20/X11 Map View 50x35 Zoom Use 0% Tactical HUD 1 Map Filters NONE Filters NONE Steam 1 RUN: d2f3073f-4260-455d-ac8d-e346e435e46b